bitfinex-derivatives/quotes_ETHF0:USTF0_20251021
["timestamp","ask_amount","ask_price","bid_price","bid_amount"]
[1761090146108,0.7502,3867.8,3865.9,0.7912]
[1761090146307,3.2078,3866.8,3866.0,0.7912]
[1761090146503,0.46544,3866.0,3865.7,0.7912]
[1761090146697,0.7502,3866.5,3865.6,3.43223534]
[1761090146901,0.46544,3866.0,3865.3,3.999]
[1761090147100,0.46756683,3866.0,3865.3,3.999]
[1761090147303,0.46756683,3866.0,3865.4,3.40557787]
[1761090147502,0.46756683,3866.0,3865.4,4.19677787]
[1761090147702,10.231,3868.6,3865.8,3.2078]
[1761090147901,0.90163688,3868.3,3867.7,0.7912]
[1761090148203,8.13388114,3869.3,3866.4,2.8818]
[1761090148204,1.16311,3867.6,3866.4,0.7912]
[1761090148398,1.45563,3868.2,3866.4,0.7912]
[1761090148399,3.67307,3867.4,3866.5,0.7912]
[1761090148601,0.46525,3867.6,3866.9,0.7912]
[1761090148797,0.7502,3867.5,3866.4,0.7912]
[1761090149109,4.4233,3867.2,3866.4,0.7912]
[1761090149411,0.7502,3867.2,3866.7,3.999]
[1761090149999,0.7502,3867.5,3866.4,3.2078]
[1761090150300,0.7502,3867.5,3866.2,0.7912]
[1761090150301,0.46537,3866.6,3866.2,0.7912]
[1761090150507,0.7502,3866.5,3866.1,3.31731956]
[1761090150811,0.46534,3866.8,3866.1,0.7912]
[1761090151107,1.21551,3867.0,3866.5,0.7912]
[1761090151302,0.7502,3866.8,3866.4,3.2078]
[1761090151508,0.7502,3866.3,3866.0,3.999]
[1761090151697,0.7502,3866.1,3866.0,3.2078]
[1761090151902,0.7502,3866.1,3865.5,3.2078]
[1761090152304,3.67319,3866.4,3865.6,0.7912]
[1761090152498,0.46539,3866.4,3865.9,3.2078]
[1761090152709,0.46539,3866.4,3866.0,0.7912]
[1761090153101,0.7502,3866.6,3866.0,0.7912]
[1761090153301,1.21557,3866.6,3866.0,0.7912]
[1761090153500,0.46541,3866.2,3865.5,4.2928]
[1761090153706,0.46539,3866.4,3865.5,4.2928]
[1761090154010,0.46541,3866.3,3865.6,3.33164531]
[1761090154207,0.7502,3866.6,3865.6,3.33164531]
[1761090154408,0.46541,3866.3,3865.5,4.2928]
[1761090154814,0.46542,3866.2,3865.5,4.2928]
[1761090155115,0.46542,3866.2,3865.5,3.999]
[1761090155419,0.46543,3866.1,3865.5,3.999]
[1761090156315,0.7502,3865.6,3865.1,3.2096594]
[1761090156612,3.958,3865.2,3865.1,0.0018594]
[1761090157207,8.958,3865.2,3865.1,0.0018594]
[1761090160216,1.91409,3865.0,3864.1,3.2078]
[1761090160517,1.21582,3864.5,3864.1,3.999]
[1761090161013,0.46563,3864.4,3864.1,3.999]
[1761090161313,1.21584,3864.3,3864.1,4.00147868]
[1761090161521,1.21584,3864.3,3864.1,0.00247868]
[1761090162314,0.00189642,3864.4,3864.1,0.79367868]
[1761090162521,0.75209642,3864.4,3864.2,0.7912]
[1761090162819,0.75209642,3864.4,3864.1,3.21027868]
[1761090162820,0.46564,3864.3,3864.1,0.00247868]
[1761090163009,0.46564,3864.3,3864.1,0.79367868]
[1761090163210,0.00189642,3864.4,3864.1,0.79367868]
[1761090165322,0.46752642,3864.4,3864.1,0.79367868]
[1761090166818,1.21772642,3864.4,3864.1,0.79367868]
[1761090167026,0.46564,3864.3,3864.1,0.79367868]
[1761090167924,0.75209642,3864.4,3864.1,0.79367868]
[1761090168125,0.46752642,3864.4,3864.1,0.79367868]
[1761090168920,0.00189642,3864.4,3864.1,0.79367868]
[1761090169119,0.00189642,3864.4,3864.3,0.7912]
[1761090169925,1.21584,3864.3,3864.1,0.79367868]
[1761090170317,0.00189642,3864.4,3864.1,0.79367868]
[1761090170819,0.8453,3864.2,3864.1,0.00247868]
[1761090172127,5.8453,3864.2,3864.1,0.00247868]
[1761090172330,1.31111,3862.9,3862.8,0.02588796]
[1761090172518,14.43491,3862.9,3862.8,0.02588796]
[1761090173228,14.43491,3862.9,3862.8,0.02880251]
[1761090175931,19.43491,3862.9,3862.8,0.02880251]
[1761090177332,14.43491,3862.9,3862.8,0.02880251]
[1761090177536,19.43491,3862.9,3862.8,0.02880251]
[1761090178128,14.43491,3862.9,3862.8,0.02880251]
[1761090180233,0.46596,3861.7,3861.4,4.0589]
[1761090180427,10.38394,3861.9,3861.5,0.8511]
[1761090180934,9.918,3861.9,3861.5,0.8511]
[1761090181328,9.918,3861.9,3861.5,0.85320452]
[1761090182129,10.7633,3861.9,3861.5,0.85320452]
[1761090182430,0.8453,3862.4,3861.6,3.40034411]
[1761090182735,0.46591,3862.1,3861.7,0.8511]
[1761090182935,1.31123,3861.9,3861.7,0.8511]
[1761090183130,0.8453,3861.6,3861.5,0.00210452]
[1761090183340,13.9753535,3861.6,3861.5,0.00210452]
[1761090183928,0.0032535,3861.6,3861.5,0.85320452]
[1761090184331,6.0932535,3861.6,3861.5,0.85320452]
[1761090184931,6.9385535,3861.6,3861.5,0.00210452]
[1761090185523,6.0932535,3861.6,3861.5,0.85320452]
[1761090185724,10.1463535,3861.6,3861.5,0.00210452]
[1761090186227,9.9222535,3861.6,3861.5,0.85320452]
[1761090186428,0.0032535,3861.6,3861.5,0.85320452]
[1761090186737,0.0032535,3861.6,3861.5,9.27231423]
[1761090186934,0.0032535,3861.6,3861.5,4.27231423]
[1761090188136,0.8453,3863.2,3862.0,0.8511]
[1761090188338,3.5429,3863.3,3862.0,0.8511]
[1761090188339,0.8453,3862.8,3862.0,0.8511]
[1761090188536,0.8453,3862.5,3862.0,0.8511]
[1761090189037,0.8453,3862.4,3862.0,0.8511]
[1761090189534,0.00259375,3862.5,3862.3,0.8511]
[1761090193641,3.5429,3863.3,3862.3,0.8511]
[1761090193642,3.2078,3863.3,3862.3,0.8511]
[1761090193839,3.2078,3863.3,3862.8,0.8511]
[1761090194451,3.2078,3863.3,3863.0,0.8511]
[1761090194838,3.21039217,3863.3,3863.0,0.8511]
[1761090195750,0.46577,3863.2,3863.0,0.8511]
[1761090195951,0.8453,3863.2,3862.8,0.8511]
[1761090196141,0.8453,3863.1,3862.8,0.8511]
[1761090196340,0.84789217,3863.3,3862.8,0.8511]
[1761090196544,0.00259217,3863.3,3863.0,0.8511]
[1761090196838,0.8453,3863.1,3862.7,4.0589]
[1761090197149,0.8453,3863.1,3862.8,0.8511]
[1761090198555,0.00259217,3863.3,3862.8,0.8511]
[1761090198744,3.2078,3864.8,3863.4,0.8511]
[1761090199045,3.2078,3864.8,3864.2,0.8511]
[1761090199252,3.2078,3865.2,3864.3,1.38451201]
[1761090199444,0.8453,3865.4,3864.6,0.8113]
[1761090199748,0.7562,3865.2,3865.0,0.8113]
[1761090199943,0.7562,3865.2,3864.8,1.38451201]
[1761090200147,0.75806276,3865.2,3864.8,0.00216534]
[1761090200541,0.00186276,3865.2,3864.9,0.8113]
[1761090200745,0.00186276,3865.2,3865.0,0.8113]
[1761090201147,0.00186276,3865.2,3865.0,1.01900108]
[1761090201452,0.00186276,3865.2,3865.0,0.8113]
[1761090201753,0.7562,3865.9,3865.2,0.7786]
[1761090201943,3.2078,3866.0,3865.2,0.7786]
[1761090202138,3.2078,3866.0,3865.3,3.42745716]
[1761090202343,3.9671,3866.0,3865.5,0.7786]
[1761090202741,3.96911475,3866.0,3865.5,0.7786]
[1761090203341,3.2078,3867.2,3866.0,0.7786]
[1761090203545,3.2078,3867.2,3866.5,0.7786]
[1761090203952,3.2078,3867.2,3866.9,0.7786]
[1761090204147,3.2298,3867.8,3867.0,0.7786]
[1761090204448,3.23307452,3867.8,3867.1,0.7786]
[1761090204656,0.00327452,3867.8,3867.7,3.9864]
[1761090204950,0.3133,3868.2,3867.7,3.21061033]
[1761090205256,0.7593,3867.8,3867.7,0.00281033]
[1761090205556,3.9671,3867.8,3867.7,0.00281033]
[1761090205856,0.0029129,3867.8,3867.7,0.78141033]
[1761090207241,3.2078,3868.7,3867.8,0.7786]
[1761090207448,0.7593,3869.1,3868.5,3.2078]
[1761090207744,3.2078,3869.2,3868.6,0.7786]
[1761090207949,3.2078,3869.2,3868.7,0.7786]
[1761090208457,1.0726,3869.6,3868.9,3.2078]
[1761090208649,0.7593,3869.5,3868.9,3.2078]
[1761090208848,0.7593,3869.5,3869.0,0.7786]
[1761090209048,0.465,3869.6,3869.0,0.7786]
[1761090209353,3.9671,3869.7,3869.0,0.7786]
[1761090209753,3.2078,3869.7,3869.0,0.7786]
[1761090210051,0.00246712,3869.7,3869.4,0.7786]
[1761090210458,0.76176712,3869.7,3869.0,3.2874185]
[1761090210753,0.7593,3868.8,3867.9,0.7786]
[1761090210948,0.7593,3868.5,3867.9,0.7786]
[1761090211142,0.7593,3868.5,3868.1,0.7786]
[1761090211543,0.7593,3868.9,3868.1,0.7786]
[1761090211750,0.3133,3868.8,3868.1,0.7786]
[1761090211956,0.7593,3868.7,3868.1,0.7786]
[1761090212756,0.7593,3868.2,3867.7,0.00281033]
[1761090212951,0.7593,3868.2,3867.7,0.78141033]
[1761090213145,3.2078,3868.5,3867.7,0.78141033]
[1761090213353,3.2078,3868.5,3867.8,3.43059864]
[1761090213653,0.46513,3868.6,3868.0,0.7786]
[1761090214348,0.7593,3868.7,3868.0,0.7786]
[1761090214959,0.7593,3868.7,3868.3,3.9864]
[1761090215149,0.7593,3868.7,3868.3,0.7786]
[1761090216158,0.7593,3868.6,3868.2,3.2078]
[1761090216460,0.7593,3868.6,3867.7,0.00281033]
[1761090216461,0.7593,3868.1,3867.7,0.00281033]
[1761090216659,0.7593,3867.8,3867.7,0.00281033]
[1761090216962,0.7593,3868.0,3867.1,3.2078]
[1761090217145,0.7593,3868.0,3867.2,0.7786]
[1761090217352,0.7593,3868.5,3867.8,0.7786]
[1761090217756,0.7593,3868.5,3867.7,3.2088]
[1761090217757,0.7593,3868.1,3867.7,0.001]
[1761090218057,0.7593,3868.1,3867.7,0.00428498]
[1761090218257,0.7593,3868.1,3867.7,0.78288498]
[1761090218466,0.4652,3868.0,3867.7,0.00428498]
[1761090218657,0.7593,3867.9,3867.7,0.00428498]
[1761090219165,3.2078,3868.8,3867.9,0.7786]
[1761090219353,0.7593,3868.7,3868.2,0.7786]
[1761090219557,0.7593,3868.7,3868.0,3.29019922]
[1761090219761,0.7593,3868.2,3867.9,4.06879922]
[1761090220060,0.7593,3868.0,3867.7,0.00428498]
[1761090220260,0.7593,3868.0,3867.7,0.78288498]
[1761090220452,3.67293,3868.5,3867.7,0.78288498]
[1761090220765,0.46513,3868.5,3867.7,0.78288498]
[1761090221764,3.2078,3871.0,3868.9,0.2985]
[1761090222057,0.7593,3871.5,3869.7,0.7786]
[1761090222260,0.7593,3871.1,3870.3,3.2078]
[1761090222570,0.7593,3871.0,3870.3,3.2078]
[1761090222954,3.2078,3870.9,3870.3,3.2078]
[1761090223165,0.7593,3870.5,3870.3,3.2078]
[1761090223556,1.22684527,3871.0,3870.3,3.2078]
[1761090223858,0.46485,3870.9,3870.3,3.2078]
[1761090224075,0.7593,3870.8,3870.3,3.2078]
[1761090224254,0.46486,3870.7,3870.3,3.2078]
[1761090224455,0.7593,3870.6,3870.3,3.2078]
[1761090224858,0.46489,3870.5,3870.3,3.2078]
[1761090225058,0.7593,3870.4,3869.5,3.2078]
[1761090225265,1.22425,3870.1,3869.5,3.2078]
[1761090225566,0.7593,3870.0,3869.9,3.2078]
[1761090225762,0.46499,3869.7,3869.5,3.2078]
[1761090226070,0.7593,3869.6,3869.5,3.2078]
[1761090226262,0.46501,3869.5,3869.0,13.1048]
[1761090226569,1.22435,3869.2,3869.0,3.2078]
[1761090226760,0.7593,3869.1,3869.0,3.2078]
[1761090226957,0.7593,3868.7,3868.6,3.2078]
[1761090227762,0.7593,3868.6,3868.1,3.2078]
[1761090228066,0.7593,3868.2,3868.1,3.2078]
[1761090228263,0.76244875,3868.2,3868.1,3.2078]
[1761090228966,5.76244875,3868.2,3868.1,3.2078]
[1761090229266,1.22451,3867.8,3867.7,3.21208498]
[1761090229658,6.22451,3867.8,3867.7,3.21208498]
[1761090229874,6.22451,3867.8,3867.7,0.00428498]
[1761090231659,6.22451,3867.8,3867.2,3.2078]
[1761090231660,1.29147,3867.3,3867.2,3.2078]
[1761090231865,0.8262,3867.1,3866.7,3.2078]
[1761090232166,1.29153,3866.8,3866.7,3.2078]
[1761090232568,0.8262,3868.8,3866.8,0.8056]
[1761090232867,0.8262,3868.8,3866.7,3.21042241]
[1761090232868,1.29153,3866.8,3866.7,3.21042241]
[1761090233062,1.29153,3866.8,3866.7,0.00262241]
[1761090233261,0.46533,3866.9,3866.7,0.80822241]
[1761090233962,1.29153,3866.9,3866.7,0.00262241]
[1761090235168,0.8262,3866.9,3866.7,0.00262241]
[1761090235369,0.8262,3867.8,3866.8,0.8056]
[1761090235666,0.46529,3867.2,3867.0,3.2078]
[1761090235871,0.46529,3867.2,3867.0,4.0134]
[1761090236074,0.46529,3867.2,3867.1,0.8056]
[1761090236269,0.46527,3867.4,3867.1,0.8056]
[1761090236772,0.8262,3867.9,3867.1,0.8056]
[1761090237069,0.8262,3867.9,3867.4,3.2078]
[1761090237574,0.8262,3867.5,3867.4,3.2078]
[1761090237966,0.46524,3867.6,3867.4,4.0134]
[1761090239085,0.8262,3868.3,3867.5,0.8056]
[1761090239271,0.46523,3867.7,3867.5,0.8056]
[1761090240170,3.2078,3868.4,3867.5,0.8056]
[1761090240371,3.2078,3868.4,3866.7,0.26124087]
[1761090240372,3.2078,3868.9,3867.8,3.2078]
[1761090240570,0.8262,3868.0,3867.8,3.2078]
[1761090241076,0.8262,3870.8,3869.0,0.8056]
[1761090241272,0.8262,3870.8,3870.2,3.2078]
[1761090241273,0.4649,3870.5,3870.2,3.2078]
[1761090241475,0.8262,3870.3,3870.2,3.2078]
[1761090241880,0.8262,3870.2,3869.2,1.38451201]
[1761090242171,0.8262,3869.8,3869.5,3.2078]
[1761090242374,0.465,3869.6,3869.5,3.2078]
[1761090242567,1.29123,3869.4,3869.2,0.00264867]
[1761090242772,0.8262,3869.3,3869.2,0.00264867]
[1761090243368,0.8262,3871.6,3870.1,0.8056]
[1761090243570,0.46483,3871.0,3870.2,4.0134]
[1761090243766,0.8262,3870.9,3870.8,3.2078]
[1761090243969,0.46473,3871.8,3870.8,3.2078]
[1761090244171,0.8262,3872.5,3871.6,0.8056]
[1761090244375,0.8262,3871.7,3870.9,3.2078]
[1761090244571,0.8262,3871.1,3870.9,3.2078]
[1761090244769,0.8262,3871.0,3870.9,3.2078]
[1761090244979,0.46491,3870.3,3870.1,3.2078]
[1761090245175,0.8262,3870.2,3870.1,3.2078]
[1761090245777,0.46492,3870.3,3870.1,3.2078]
[1761090245979,0.8262,3870.2,3870.1,3.2078]
[1761090246688,1.29117,3869.8,3869.7,3.2078]
[1761090247381,1.29113,3870.2,3869.7,4.0134]
[1761090247578,1.29113,3870.2,3870.1,3.2078]
[1761090247780,0.8262,3870.8,3870.1,3.2078]
[1761090247976,0.324,3870.9,3869.3,0.8056]
[1761090247977,0.46491,3870.4,3869.3,0.8056]
[1761090248173,1.29111,3870.4,3870.3,3.2078]
[1761090248375,0.46488,3870.6,3870.3,3.2078]
[1761090248587,1.29108,3870.6,3870.3,3.2078]
[1761090248788,0.4649,3870.5,3870.3,3.2078]
[1761090249079,0.8262,3870.4,3870.3,3.2078]
[1761090249286,0.4649,3870.5,3870.3,3.2078]
[1761090249583,0.82899228,3871.7,3871.0,0.8056]
[1761090249783,0.00279228,3871.7,3871.6,3.2078]
[1761090249976,0.00279228,3871.7,3871.6,4.0134]
[1761090250286,0.82899228,3871.7,3871.6,3.2078]
[1761090250678,3.2078,3873.8,3871.9,0.8056]
[1761090250980,1.61479,3873.0,3872.9,3.2078]
[1761090251180,0.8262,3873.5,3872.9,3.2078]
[1761090251386,0.8262,3873.5,3873.3,3.2078]
[1761090251587,1.29074,3873.4,3873.3,3.2078]
[1761090251785,0.8262,3873.6,3873.3,3.2078]
[1761090252187,0.8262,3873.5,3873.3,3.2078]
[1761090252381,0.46452,3873.6,3873.3,4.0134]
[1761090252679,0.0032896,3873.6,3873.3,3.21071689]
[1761090252874,0.8294896,3873.6,3873.3,3.21071689]
[1761090254488,0.0032896,3873.6,3873.3,4.01631689]
[1761090254688,0.0032896,3873.6,3873.4,0.8056]
[1761090254986,0.4678096,3873.6,3873.4,0.8056]
[1761090255684,0.46453,3873.5,3873.3,3.21071689]
[1761090255877,0.46459,3873.0,3872.9,3.2078]
[1761090256079,1.29079,3873.0,3872.9,3.2078]
[1761090256386,1.29085,3872.5,3872.4,3.2078]
[1761090256781,1.29085,3872.5,3871.6,3.2078]
[1761090256782,1.29094,3871.7,3871.6,3.2078]
[1761090257290,0.46474,3871.7,3871.6,3.2078]
[1761090257691,3.2078,3872.9,3871.6,3.2078]
[1761090257981,0.46467,3872.3,3872.2,3.2078]
[1761090258188,0.46467,3872.3,3872.2,3.21046254]
[1761090258586,10.301,3872.8,3872.2,4.01606254]
[1761090258889,10.297,3873.0,3872.7,4.0134]
[1761090259676,10.76159,3873.0,3872.7,4.0134]
[1761090259876,10.75759,3873.0,3872.7,4.0134]
[1761090260587,0.8262,3873.5,3872.7,4.2288]
[1761090260780,0.46458,3873.1,3872.7,1.021]
[1761090261091,1.43384,3873.5,3873.1,0.9658]
[1761090261290,0.46455,3873.4,3873.1,0.9658]
[1761090261489,0.46455,3873.4,3873.3,3.2078]
[1761090261883,1.43385,3873.4,3873.3,3.2078]
[1761090262084,0.46455,3873.4,3873.3,3.2078]
[1761090262291,10.75855,3873.4,3873.3,4.1736]
[1761090262691,10.75855,3873.4,3873.3,3.2078]
[1761090263286,0.46455,3873.4,3873.3,3.2078]
[1761090264089,8.98385,3873.4,3873.3,3.2078]
[1761090264290,13.98385,3873.4,3873.3,3.2078]
[1761090264480,0.9693,3873.2,3872.9,3.2078]
[1761090264684,1.43389,3873.0,3872.9,3.2078]
[1761090265092,6.43389,3873.0,3872.9,3.2078]
[1761090265795,6.43389,3873.0,3872.2,0.00266254]
[1761090265796,0.9693,3872.6,3872.5,3.2078]
[1761090265985,11.68994,3872.6,3872.5,3.2078]
[1761090266394,11.68994,3872.6,3872.2,0.00266254]
[1761090266395,1.43397,3872.3,3872.2,0.00266254]
[1761090267386,6.43397,3872.3,3872.2,0.00266254]
[1761090268693,6.43397,3872.3,3872.2,2.54e-06]
[1761090269594,0.46466,3872.4,3872.2,6.62891489]
[1761090269787,0.9693,3872.3,3872.2,3.20780254]
[1761090269986,11.2253,3872.3,3872.2,3.20780254]
[1761090270595,10.256,3872.3,3872.2,2.54e-06]
[1761090271797,15.256,3872.3,3872.2,2.54e-06]
[1761090272185,15.256,3872.3,3870.8,3.2078]
[1761090272186,5.11162,3872.2,3870.8,3.2078]
[1761090272491,3.2078,3871.7,3870.8,3.2078]
[1761090272797,0.46484,3870.9,3870.8,3.2078]
[1761090273093,10.69884,3870.9,3870.8,3.2078]
[1761090273395,10.69884,3870.9,3870.8,3.20989194]
[1761090273892,10.223,3872.0,3870.9,1.1117]
[1761090274098,0.46477,3871.5,3871.4,3.2078]
[1761090274297,1.43407,3871.5,3871.4,3.2078]
[1761090275093,0.46477,3871.5,3871.4,4.1736]
[1761090275796,9.07977,3871.5,3871.4,4.1736]
[1761090275990,0.46477,3871.5,3871.4,4.1736]
[1761090276192,11.65907,3871.5,3871.4,3.2088]
[1761090276588,1.43407,3871.5,3871.4,3.2088]
[1761090276797,10.11407,3871.5,3871.4,3.2088]
[1761090277297,9.14477,3871.5,3871.4,4.1746]
[1761090277696,0.46477,3871.5,3871.4,4.1746]
[1761090277894,10.67577,3871.5,3871.4,4.1746]
[1761090278194,0.9693,3872.1,3871.5,0.9658]
[1761090278395,0.9693,3873.5,3872.1,0.7113]
[1761090278594,0.46464,3872.6,3872.5,3.2078]
[1761090278794,1.43394,3872.6,3872.5,3.2078]
[1761090278991,0.46464,3872.6,3872.5,3.2078]
[1761090279392,0.46464,3872.6,3872.5,4.12905335]
[1761090279593,0.46464,3872.6,3872.5,3.2078]
[1761090282096,0.46464,3872.6,3872.5,4.13129854]
[1761090282297,0.46464,3872.6,3872.5,4.84259854]
[1761090282605,1.43394,3872.6,3872.5,3.2078]
[1761090283302,6.818,3872.7,3871.9,0.7113]
[1761090283303,10.0258,3872.7,3871.9,0.92356463]
[1761090283599,1.3775,3872.0,3871.8,0.92356463]
[1761090283905,0.46475,3871.7,3871.6,3.2078]
[1761090284602,1.43404,3871.8,3871.6,4.59231201]
[1761090285499,0.9693,3871.8,3871.6,4.59231201]
[1761090285689,0.9693,3871.8,3871.7,1.38451201]
[1761090285892,0.9693,3872.3,3871.7,1.38451201]
[1761090286200,1.43398,3872.3,3872.2,3.2078]
[1761090286403,11.57598,3872.3,3872.2,3.2078]
[1761090287401,11.57398,3872.3,3872.2,3.2078]
[1761090287606,1.43398,3872.3,3872.2,3.2078]
[1761090287807,11.56298,3872.3,3872.2,3.2078]
[1761090288899,0.46467,3872.4,3872.2,7.97610961]
[1761090289208,10.144,3872.4,3872.3,0.7113]
[1761090289408,10.144,3872.4,3872.3,2.09775548]
[1761090289809,10.144,3872.4,3872.3,1.38645548]
[1761090291305,10.138,3872.6,3872.4,0.6435]
[1761090291508,11.57595,3872.6,3872.4,1.38696375]
[1761090291803,0.9733,3872.5,3872.4,1.38696375]
[1761090292603,10.138,3872.6,3872.4,1.38696375]
[1761090292812,10.138,3872.6,3872.5,1.38696375]
[1761090293107,0.0032896,3873.6,3872.6,0.6435]
[1761090293410,0.4678096,3873.6,3873.5,0.92477567]
[1761090293610,0.46454,3873.4,3873.2,0.92477567]
[1761090293801,1.82788,3873.1,3873.0,0.92477567]
[1761090294113,0.46461,3872.9,3872.8,0.92506929]
[1761090294313,0.46461,3872.9,3872.6,4.5949635]
[1761090294314,0.46462,3872.8,3872.7,1.3871635]
[1761090294908,1.43792,3872.8,3872.7,1.3871635]
[1761090295504,1.82792,3872.8,3872.7,1.3871635]
[1761090295706,0.9733,3872.7,3872.6,0.8544535]
[1761090295909,0.9733,3872.7,3872.2,3.2078]
[1761090295910,0.9733,3872.6,3872.2,3.2078]
[1761090296106,0.46468,3872.3,3872.2,3.2078]
[1761090296311,1.43798,3872.3,3872.2,1.36746]
[1761090296504,0.9733,3871.9,3871.5,0.92543163]
[1761090296704,1.43806,3871.6,3871.5,0.92543163]
[1761090297104,1.43806,3871.6,3871.4,0.001]
[1761090297105,1.43806,3871.6,3871.4,3.2088]
[1761090297710,0.9733,3871.5,3871.4,3.2088]
[1761090298103,10.138,3871.5,3871.4,3.2088]
[1761090298506,10.138,3871.5,3871.4,4.1967]
[1761090298716,0.9733,3871.5,3871.4,3.2088]
[1761090299017,11.0953,3871.5,3871.4,3.2088]
[1761090299513,0.46476,3871.6,3871.5,0.9879]
[1761090299714,10.58476,3871.6,3871.5,0.9879]
[1761090300014,0.9733,3871.5,3871.4,3.2088]
[1761090300911,10.58476,3871.6,3871.5,0.9879]
[1761090301212,11.55806,3871.6,3871.4,3.2088]
[1761090301417,4.1811,3872.6,3871.6,0.9879]
[1761090301613,4.921,3873.2,3872.6,0.9879]
[1761090301810,3.2110896,3873.6,3873.1,0.9879]
[1761090302110,3.2110896,3873.6,3872.8,0.3771]
[1761090302111,0.46447,3874.1,3873.7,0.9879]
[1761090302308,0.46447,3874.1,3874.0,4.1957]
[1761090302905,1.43960191,3874.1,3874.0,0.00199538]
[1761090303105,0.9733,3873.3,3873.0,3.2078]
[1761090303314,0.46465,3872.6,3872.5,0.9879]
[1761090303509,0.46463,3872.7,3872.5,0.9879]
[1761090303905,0.9733,3873.5,3872.5,5.0]
[1761090304113,0.9733,3873.5,3873.2,3.2078]
[1761090304315,0.9733,3873.5,3873.2,3.2100518]
[1761090304512,0.9733,3873.3,3873.2,3.2100518]
[1761090304815,10.505,3873.6,3873.2,3.2100518]
[1761090304816,10.117,3873.6,3873.3,0.9879]
[1761090305006,10.117,3873.6,3873.2,3.2100518]
[1761090305007,1.43784,3873.5,3873.2,3.2100518]
[1761090305208,1.43781,3873.7,3873.3,0.9879]
[1761090305404,0.9733,3874.0,3873.6,3.2078]
[1761090305614,0.4645,3873.8,3873.6,4.1957]
[1761090305919,0.9733,3873.3,3873.2,0.0022518]
[1761090306418,0.46455,3873.4,3873.2,0.9901518]
[1761090306918,1.43785,3873.4,3873.2,0.0022518]
[1761090307121,0.9733,3873.3,3873.2,0.0022518]
[1761090309509,0.9733,3873.9,3873.3,0.9879]
[1761090309710,0.9733,3873.8,3873.2,0.0022518]
[1761090309911,1.43786,3873.3,3873.2,0.0022518]
[1761090311020,11.52286,3873.3,3873.2,0.0022518]
[1761090311715,16.52286,3873.3,3873.2,0.0022518]
[1761090313117,1.43786,3873.3,3873.2,0.0022518]
[1761090313319,11.51186,3873.3,3873.2,0.0022518]
[1761090313714,14.71966,3873.3,3873.2,0.0022518]
[1761090314022,19.71966,3873.3,3873.2,0.0022518]
[1761090314514,19.71966,3873.3,3872.4,3.2078]
[1761090314515,1.43795,3872.5,3872.4,3.2078]
[1761090314719,11.49195,3872.5,3872.4,3.2078]
[1761090315515,11.49195,3872.5,3872.4,3.21109736]
[1761090316620,0.9733,3873.0,3872.4,3.21109736]
[1761090316816,0.46464,3872.6,3872.5,2.37461952]
[1761090317016,1.43794,3872.6,3872.5,1.38671952]
[1761090317422,0.46464,3872.6,3872.5,7.37461952]
[1761090317719,0.46464,3872.6,3872.5,2.37461952]
[1761090317915,0.9733,3873.0,3872.6,0.9879]
[1761090318117,0.9733,3872.6,3872.5,1.38671952]
[1761090320224,0.46465,3872.5,3872.4,4.59781688]
[1761090320417,1.42335,3872.5,3872.4,4.59781688]
[1761090320723,0.46465,3872.5,3872.4,5.55851688]
[1761090320912,0.46465,3872.5,3872.4,4.17179736]
[1761090322421,0.955,3873.9,3872.5,0.9347]
[1761090322719,0.00183191,3874.1,3873.8,2.32119834]
[1761090322911,0.46629191,3874.1,3874.0,4.1425]
[1761090324525,0.00183191,3874.1,3874.0,9.1425]
[1761090326531,9.996,3875.1,3874.1,0.9347]
[1761090326734,9.996,3875.1,3875.0,0.9347]
[1761090326930,1.16057,3876.1,3875.0,0.9347]
[1761090326931,0.46428,3875.6,3875.0,1.38398395]
[1761090327123,0.3961,3875.2,3874.9,4.59178395]
[1761090327324,0.46442,3874.4,3874.3,4.59178395]
[1761090327632,1.41942,3874.4,3874.3,4.1425]
[1761090327835,10.989,3874.9,3874.4,0.9347]
[1761090328036,0.955,3874.8,3874.4,0.9347]
[1761090328227,0.4662773,3874.9,3874.8,0.9347]
[1761090328429,0.955,3874.8,3874.4,2.31868395]
[1761090328730,1.41938,3874.8,3874.6,4.1425]
[1761090328930,1.41938,3874.8,3874.7,0.9347]
[1761090329332,1.41938,3874.8,3874.6,3.2078]
[1761090329528,0.0019173,3874.9,3874.6,3.2078]
[1761090329529,0.0019173,3874.9,3874.7,0.9347]
[1761090329727,0.46439,3874.7,3874.5,1.38398395]
[1761090330035,14.39354,3875.6,3874.5,1.38398395]
[1761090330036,0.46425,3875.9,3874.9,0.9347]
[1761090330237,0.46415,3876.7,3876.6,0.3716]
[1761090330436,0.46415,3876.7,3876.6,3.2078]
[1761090330833,0.46419,3876.4,3876.2,3.2078]
[1761090331141,0.46648721,3876.4,3876.2,3.21056614]
[1761090332138,0.955,3876.3,3876.2,3.21156614]
[1761090332534,5.955,3876.3,3876.2,3.21156614]
[1761090332931,0.955,3876.1,3875.2,1.38184221]
[1761090333141,0.955,3875.7,3875.0,0.9347]
[1761090333339,0.46435,3875.1,3875.0,0.9347]
[1761090333537,0.955,3875.0,3874.5,3.2078]
[1761090333837,0.4644,3874.6,3874.5,3.2078]
[1761090334041,0.4644,3874.6,3874.5,4.14490278]
[1761090335338,3.2078,3875.4,3874.5,4.14490278]
[1761090335339,0.955,3876.3,3874.5,8.21020278]
[1761090335537,0.46429,3875.6,3875.4,0.9347]
[1761090335734,0.46433,3875.2,3875.0,0.9347]
[1761090335931,0.46433,3875.2,3874.5,4.68712597]
[1761090335932,0.00229721,3876.4,3875.2,1.3063]
[1761090336147,0.46421,3876.2,3876.1,4.1425]
[1761090337342,0.46421,3876.2,3876.1,3.2078]
[1761090337647,0.46421,3876.2,3876.1,4.1425]